fUST/lending_fUST_20240608
["ID","MTS","AMOUNT","RATE_DAILY","PERIOD"]
[328794944,1717792252940,-788.97,0.00022191,3]
[328794945,1717792252950,-500.0,0.00022191,3]
[328794946,1717792252959,-433.23833091,0.00022191,3]
[328794947,1717792252968,-500.0,0.00022191,3]
[328794948,1717792252978,-884.95,0.00022191,3]
[328794949,1717792252987,-2610.69,0.00022191,3]
[328794950,1717792252998,-500.0,0.00022191,3]
[328794951,1717792253008,-151.0,0.00022191,2]
[328794952,1717792253018,-151.0,0.00022191,2]
[328794953,1717792253027,-151.0,0.00022191,2]
[328794954,1717792253038,-151.0,0.00022191,2]
[328794955,1717792253047,-725.53,0.00022191,3]
[328794956,1717792253057,-500.0,0.00022191,3]
[328794957,1717792253068,-500.0,0.00022191,3]
[328794958,1717792253077,-500.0,0.00022191,3]
[328794959,1717792253087,-443.51637522,0.00022191,3]
[328794960,1717792253098,-500.0,0.00022191,3]
[328794961,1717792253109,-500.0,0.00022191,3]
[328794962,1717792253119,-500.0,0.00022191,3]
[328794963,1717792253128,-500.0,0.00022191,3]
[328794964,1717792253138,-1007.71,0.00022191,3]
[328794965,1717792253148,-500.0,0.00022191,3]
[328794966,1717792253158,-416.76362656,0.00022191,3]
[328794967,1717792253167,-500.0,0.00022191,3]
[328794968,1717792253177,-500.0,0.00022191,3]
[328794969,1717792253187,-500.0,0.00022191,3]
[328794970,1717792253197,-151.0,0.00022191,2]
[328794971,1717792253206,-151.0,0.00022191,2]
[328794972,1717792253216,-151.0,0.00022191,2]
[328794973,1717792253226,-151.0,0.00022191,2]
[328794974,1717792253236,-151.0,0.00022191,2]
[328794975,1717792253246,-151.0,0.00022191,2]
[328794976,1717792253256,-184.221496,0.00022191,2]
[328794977,1717792253267,-151.0,0.00022191,2]
[328794978,1717792253277,-161.101739,0.00022191,2]
[328794979,1717792253287,-500.0,0.00022191,3]
[328794980,1717792253296,-500.0,0.00022191,3]
[328794981,1717792253305,-500.0,0.00022191,3]
[328794982,1717792253314,-500.0,0.00022191,3]
[328794983,1717792253324,-695.51,0.00022191,3]
[328794984,1717792253333,-500.0,0.00022191,3]
[328794985,1717792253343,-500.0,0.00022191,3]
[328794986,1717792253352,-500.0,0.00022191,3]
[328794987,1717792253361,-2398.74,0.00022191,3]
[328794988,1717792253370,-1394.58,0.00022191,3]
[328794989,1717792253379,-500.0,0.00022191,3]
[328794990,1717792253388,-500.0,0.00022191,3]
[328794991,1717792253398,-580.47015695,0.00022191,3]
[328794992,1717792253407,-500.0,0.00022191,3]
[328794993,1717792253416,-2383.27,0.00022191,3]
[328794994,1717792253425,-500.12838758,0.00022191,3]
[328794995,1717792253434,-976.79,0.00022191,3]
[328794996,1717792253443,-500.0,0.00022191,3]
[328794997,1717792253453,-4534.556001,0.00022191,2]
[328794998,1717792253463,-4534.556001,0.00022191,2]
[328794999,1717792253472,-4534.556001,0.00022191,2]
[328795000,1717792253481,-4534.556001,0.00022191,2]
[328795001,1717792253490,-249.5446134,0.00022191,3]
[328795002,1717792253500,-500.0,0.00022191,3]
[328795003,1717792253510,-500.0,0.00022191,3]
[328795004,1717792253519,-500.0,0.00022191,3]
[328795005,1717792253529,-500.0,0.00022191,3]
[328795006,1717792253538,-753.15,0.00022191,3]
[328795007,1717792253548,-2458.19,0.00022191,3]
[328795008,1717792253557,-1905.61,0.00022191,3]
[328795009,1717792253566,-500.0,0.00022191,3]
[328795010,1717792253576,-1357.5,0.00022191,3]
[328795011,1717792253585,-500.0,0.00022191,3]
[328795012,1717792253595,-500.0,0.00022191,3]
[328795013,1717792253604,-562.360481,0.00022191,2]
[328795014,1717792253613,-562.360481,0.00022191,2]
[328795015,1717792253622,-562.360481,0.00022191,2]
[328795016,1717792253631,-562.360481,0.00022191,2]
[328795017,1717792253641,-562.360481,0.00022191,2]
[328795018,1717792253650,-562.360481,0.00022191,2]
[328795019,1717792253659,-562.360481,0.00022191,2]
[328795020,1717792253668,-562.360481,0.00022191,2]
[328795021,1717792253678,-562.360481,0.00022191,2]
[328795022,1717792253687,-562.360481,0.00022191,2]
[328795023,1717792253696,-520.36950789,0.00022191,3]
[328795024,1717792253705,-234.540134,0.00022191,2]
[328795025,1717792253715,-234.540134,0.00022191,2]
[328795026,1717792253724,-151.0,0.00022191,2]
[328795027,1717792253734,-234.540134,0.00022191,2]
[328795028,1717792253743,-151.0,0.00022191,2]
[328795029,1717792253752,-500.0,0.00022191,3]
[328795030,1717792253763,-151.0,0.00022191,2]
[328795031,1717792253773,-234.540134,0.00022191,2]
[328795032,1717792253786,-151.0,0.00022191,2]
[328795033,1717792253796,-500.0,0.00022191,3]
[328795034,1717792253805,-151.0,0.00022191,2]
[328795035,1717792253815,-151.0,0.00022191,2]
[328795036,1717792253824,-151.0,0.00022191,2]
[328795037,1717792253834,-151.0,0.00022191,2]
[328795038,1717792253843,-234.540134,0.00022191,2]
[328795039,1717792253852,-234.540134,0.00022191,2]
[328795040,1717792253864,-157.000184,0.00022191,2]
[328795041,1717792253874,-234.540134,0.00022191,2]
[328795042,1717792253883,-234.540134,0.00022191,2]
[328795043,1717792253893,-500.0,0.00022191,3]
[328795044,1717792253902,-906.23,0.00022191,3]
[328795045,1717792253912,-512.05339594,0.00022191,3]
[328795046,1717792253922,-2853.21,0.00022191,3]
[328795047,1717792253931,-615.88,0.00022191,3]
[328795048,1717792253940,-659.751375,0.00022191,2]
[328795049,1717792253950,-659.751375,0.00022191,2]
[328795050,1717792253959,-659.751375,0.00022191,2]
[328795051,1717792253968,-659.751375,0.00022191,2]
[328795052,1717792253977,-500.0,0.00022191,3]
[328795053,1717792253987,-659.751375,0.00022191,2]
[328795054,1717792253997,-659.751375,0.00022191,2]
[328795055,1717792254006,-659.751375,0.00022191,2]
[328795056,1717792254018,-659.751375,0.00022191,2]
[328795057,1717792254027,-3284.59,0.00022191,3]
[328795058,1717792254037,-500.0,0.00022191,3]
[328795059,1717792254046,-677.16,0.00022191,3]
[328795060,1717792254055,-3439.97,0.00022191,3]
[328795061,1717792254064,-534.24,0.00022191,3]
[328795062,1717792254074,-4910.2,0.00022191,3]
[328795063,1717792254083,-500.0,0.00022191,3]
[328795064,1717792254092,-500.0,0.00022191,3]
[328795065,1717792254102,-1444.96,0.00022191,3]
[328795066,1717792254111,-4938.92,0.00022191,3]
[328795067,1717792254120,-671.8,0.00022191,3]
[328795068,1717792254131,-4473.89,0.00022191,3]
[328795069,1717792254140,-2447.93,0.00022191,3]
[328795070,1717792254150,-1167.452912,0.00022191,2]
[328795071,1717792254159,-1167.452912,0.00022191,2]
[328795072,1717792254169,-1167.452912,0.00022191,2]
[328795073,1717792254178,-546.41,0.00022191,3]
[328795074,1717792254188,-1167.452912,0.00022191,2]
[328795075,1717792254197,-873.37,0.00022191,3]
[328795076,1717792254207,-1167.452912,0.00022191,2]
[328795077,1717792254216,-500.0,0.00022191,3]
[328795078,1717792254226,-205.237097,0.00022191,2]
[328795079,1717792254235,-1167.452912,0.00022191,2]
[328795080,1717792254244,-205.237097,0.00022191,2]
[328795081,1717792254254,-1167.452912,0.00022191,2]
[328795082,1717792254265,-500.0,0.00022191,3]
[328795083,1717792254274,-205.237097,0.00022191,2]
[328795084,1717792254283,-1167.452912,0.00022191,2]
[328795085,1717792254292,-205.237097,0.00022191,2]
[328795086,1717792254302,-151.0,0.00022191,2]
[328795087,1717792254311,-151.0,0.00022191,2]
[328795088,1717792254320,-161.34225223,0.00022191,3]
[328795089,1717792254330,-151.0,0.00022191,2]
[328795090,1717792254339,-151.0,0.00022191,2]
[328795091,1717792254349,-205.237097,0.00022191,2]
[328795092,1717792254359,-205.237097,0.00022191,2]
[328795093,1717792254368,-205.237097,0.00022191,2]
[328795094,1717792254463,-205.237097,0.00022191,2]
[328795095,1717792254473,-151.0,0.00022191,2]
[328795096,1717792254483,-875.83,0.00022191,3]
[328795097,1717792254493,-251.056105,0.00022191,2]
[328795098,1717792254503,-500.0,0.00022191,3]
[328795099,1717792254514,-500.0,0.00022191,3]
[328795100,1717792254523,-573.41,0.00022191,3]
[328795101,1717792254533,-500.0,0.00022191,3]
[328795102,1717792254542,-151.0,0.00022191,2]
[328795103,1717792254552,-151.0,0.00022191,2]
[328795104,1717792254562,-151.0,0.00022191,2]
[328795105,1717792254572,-288.99297,0.00022191,2]
[328795106,1717792254582,-523.38,0.00022191,3]
[328795107,1717792254591,-1211.66,0.00022191,3]
[328795108,1717792254601,-1365.63,0.00022191,3]
[328795109,1717792254611,-574.62,0.00022191,3]
[328795110,1717792254620,-865.15,0.00022191,3]
[328795111,1717792254630,-500.0,0.00022191,3]
[328795112,1717792254639,-2730.35,0.00022191,3]
[328795113,1717792254649,-500.0,0.00022191,3]
[328795114,1717792254658,-500.0,0.00022191,3]
[328795115,1717792254668,-158.923664,0.00022191,2]
[328795116,1717792254678,-158.923664,0.00022191,2]
[328795117,1717792254688,-158.923664,0.00022191,2]
[328795118,1717792254697,-500.0,0.00022191,3]
[328795119,1717792254707,-3742.81,0.00022191,3]
[328795120,1717792254716,-158.923664,0.00022191,2]
[328795121,1717792254726,-662.93,0.00022191,3]
[328795122,1717792254736,-1015.22,0.00022191,3]
[328795123,1717792254747,-158.923664,0.00022191,2]
[328795124,1717792254758,-158.923664,0.00022191,2]
[328795125,1717792254769,-579.16,0.00022191,3]
[328795126,1717792254785,-158.923664,0.00022191,2]
[328795127,1717792254795,-158.923664,0.00022191,2]
[328795128,1717792254805,-500.0,0.00022191,3]
[328795129,1717792254815,-11474.89,0.00022191,3]
[328795130,1717792254826,-500.0,0.00022191,3]
[328795131,1717792254836,-4725.223322,0.00022191,2]
[328795132,1717792254846,-4725.223322,0.00022191,2]
[328795133,1717792254855,-500.0,0.00022191,3]
[328795134,1717792254866,-1852.39,0.00022191,4]
[328795135,1717792254875,-4725.223322,0.00022191,2]
[328795136,1717792254885,-838.61,0.00022191,3]
[328795137,1717792254895,-4725.223322,0.00022191,2]
[328795138,1717792254905,-4725.223322,0.00022191,2]
[328795139,1717792254915,-4725.223322,0.00022191,2]
[328795140,1717792254924,-4725.223322,0.00022191,2]
[328795141,1717792254934,-4725.223322,0.00022191,2]
[328795142,1717792254943,-500.0,0.00022191,2]
[328795143,1717792254954,-500.0,0.00022191,3]
[328795144,1717792254964,-500.0,0.00022191,3]
[328795145,1717792254973,-500.0,0.00022191,3]
[328795146,1717792254983,-500.0,0.00022191,3]
[328795147,1717792254993,-507.62,0.00022191,3]
[328795148,1717792255002,-640.03,0.00022191,3]
[328795149,1717792255012,-500.0,0.00022191,3]
[328795150,1717792255021,-500.0,0.00022191,3]
[328795151,1717792255030,-500.0,0.00022191,3]
[328795152,1717792255039,-1919.13,0.00022191,3]
[328795153,1717792255048,-2474.13,0.00022191,3]
[328795154,1717792255058,-500.0,0.00022191,3]
[328795155,1717792255068,-5652.42,0.00022191,3]
[328795156,1717792255078,-500.0,0.00022191,3]
[328795157,1717792255087,-500.0,0.00022191,3]
[328795158,1717792255097,-500.0,0.00022191,3]
[328795159,1717792255107,-1054.51,0.00022191,3]
[328795160,1717792255116,-439.97601221,0.00022191,3]
[328795161,1717792255126,-3161.3,0.00022191,3]
[328795162,1717792255135,-550.16,0.00022191,3]
[328795163,1717792255145,-6151.61,0.00022191,3]
[328795164,1717792255154,-1295.33,0.00022191,3]
[328795165,1717792255163,-2447.61,0.00022191,3]
[328795166,1717792255173,-10992.89,0.00022191,3]
[328795167,1717792255182,-500.0,0.00022191,3]
[328795168,1717792255192,-24398.51,0.00022191,3]
[328795169,1717792255202,-1760.43,0.00022191,3]
[328795170,1717792255211,-500.0,0.00022191,3]
[328795171,1717792255220,-976.42,0.00022191,3]
[328795172,1717792255229,-500.0,0.00022191,3]
[328795173,1717792255239,-500.0,0.00022191,3]
[328795174,1717792255248,-10259.07,0.00022191,3]
[328795175,1717792255267,-3153.51,0.00022191,3]
[328795176,1717792255279,-662.95,0.00022191,3]
[328795177,1717792255289,-2225.42,0.00022191,3]
[328795178,1717792255299,-500.0,0.00022191,3]
[328795179,1717792255309,-2375.96,0.00022191,3]
[328795180,1717792255319,-704.35,0.00022191,3]
[328795181,1717792255330,-2541.68,0.00022191,3]
[328795182,1717792255340,-500.0,0.00022191,3]
[328795183,1717792255350,-616.72,0.00022191,3]
[328795184,1717792255360,-500.0,0.00022191,3]
[328795185,1717792255370,-500.0,0.00022191,3]
[328795186,1717792255380,-1285.55,0.00022191,3]
[328795187,1717792255390,-588.34,0.00022191,2]
[328795188,1717792255400,-955.93,0.00022191,3]
[328795189,1717792255410,-1900.6,0.00022191,3]
[328795190,1717792255421,-508.30958498,0.00022191,3]
[328795191,1717792255431,-500.0,0.00022191,3]
[328795192,1717792255441,-500.0,0.00022191,3]
[328795193,1717792255451,-851.54,0.00022191,3]
[328795194,1717792255461,-744.04,0.00022191,3]
[328795195,1717792255471,-879.68,0.00022191,3]
[328795196,1717792255481,-1056.36,0.00022191,3]
[328795197,1717792255491,-521.0,0.00022192,2]
[328795198,1717792255501,-151.0,0.00022275,5]
[328795199,1717792255511,-151.0,0.00022275,5]
[328795200,1717792255522,-21989.32441111,0.0002233,3]
[328795237,1717793144105,-171.691387,0.0001921,2]
[328795238,1717793144128,-1982.32709651,0.0001932,2]
[328795256,1717793348291,-296.1408638,0.000189,2]
[328795257,1717793348311,-22917.67290349,0.0001932,2]
[328795258,1717793348332,-1715.2985261,0.0001964,2]
[328795305,1717793432884,-817.06617175,0.0002,2]
[328795306,1717793432894,-931.88170639,0.0002,2]
[328795307,1717793432904,-528.82048607,0.00020084,4]
[328795308,1717793432914,-281.19763205,0.00020085,2]
[328795309,1717793432924,-29361.55392685,0.0002088,2]
[328795310,1717793432957,-316.23475701,0.0002088,2]
[328795360,1717793438702,-1134.80955268,0.0002088,2]
[328795366,1717793438752,-3683.0,0.0002088,2]
[328795368,1717793438765,-19983.9694979,0.0002088,2]
[328795370,1717793438775,-1198.28955982,0.000209,2]
[328795372,1717793438785,-2453.05522412,0.00021,2]
[328795374,1717793438795,-7369.57739568,0.00021,2]
[328795376,1717793438804,-2072.36485927,0.00021023,2]
[328795378,1717793438814,-166.93153526,0.00021416,2]
[328795381,1717793438824,-3000.0,0.000215,2]
[328795383,1717793438834,-3000.0,0.0002151,2]
[328795385,1717793438844,-3190.115934,0.0002152,2]
[328795387,1717793438854,-634.76017124,0.00021577,2]
[328795389,1717793438864,-584.6618454,0.00021644,2]
[328795391,1717793438873,-1198.28955975,0.00021757,2]
[328795393,1717793438883,-1302.5,0.00021893,2]
[328795395,1717793438893,-241.73,0.00021906,3]
[328795397,1717793438902,-471.86986171,0.00021915,2]
[328795399,1717793438912,-1454.67178386,0.00021915,3]
[328795401,1717793438922,-945.46842875,0.00021915,2]
[328795403,1717793438932,-812.37381439,0.00021915,2]
[328795405,1717793438942,-2126.79343232,0.00021915,2]
[328795407,1717793438951,-500.0,0.00021915,2]
[328795422,1717793439093,-288.53479316,0.00021915,2]
[328795424,1717793439103,-500.0,0.00021915,2]
[328795426,1717793439114,-500.0,0.00021915,2]
[328795428,1717793439124,-606.28339741,0.00021915,2]
[328795430,1717793439136,-282.86059484,0.00021915,2]
[328795432,1717793439147,-500.0,0.00021915,2]
[328795434,1717793439157,-230.50530546,0.00021915,2]
[328795437,1717793439171,-293.44239991,0.00021915,2]
[328795438,1717793439181,-631.1757396,0.00021915,2]
[328795440,1717793439192,-500.0,0.00021915,2]
[328795443,1717793439203,-500.0,0.00021915,2]
[328795445,1717793439213,-500.0,0.00021915,2]
[328795447,1717793439223,-500.0,0.00021915,2]
[328795449,1717793439233,-500.0,0.00021915,2]
[328795450,1717793439244,-500.0,0.00021915,2]
[328795452,1717793439256,-191.20438432,0.00021916,2]
[328795454,1717793439267,-265.32126628,0.00021916,7]
[328795456,1717793439277,-12725.635101,0.00021916,2]
[328795458,1717793439287,-28304.81757103,0.00021917,7]
[328795460,1717793439298,-2400.35210555,0.00021917,2]
[328795462,1717793439308,-2912.22116584,0.00021917,2]
[328795490,1717793444144,-792.90848157,0.00021917,2]
[328795491,1717793444156,-11343.84872882,0.00021917,2]
[328795495,1717793444440,-1496.61079472,0.00021917,2]
[328795504,1717793446680,-107763.4417512,0.00021917,2]
[328795505,1717793446692,-225.02004134,0.00021917,2]
[328795506,1717793446703,-286.47075578,0.00021917,2]
[328795507,1717793446714,-500.0,0.00021917,3]
[328795508,1717793446724,-500.0,0.00021917,3]
[328795509,1717793446735,-500.0,0.00021917,3]
[328795510,1717793446749,-500.0,0.00021917,3]
[328795511,1717793446760,-500.0,0.00021917,3]
[328795512,1717793446770,-509.01903119,0.00021917,3]
[328795513,1717793446780,-500.0,0.00021917,3]
[328795514,1717793446792,-500.0,0.00021917,3]
[328795515,1717793446804,-500.0,0.00021917,3]
[328795516,1717793446815,-500.0,0.00021917,3]
[328795517,1717793446825,-752.73,0.00021917,3]
[328795518,1717793446835,-500.0,0.00021917,3]
[328795519,1717793446846,-500.0,0.00021917,3]
[328795520,1717793446856,-500.0,0.00021917,3]
[328795521,1717793446866,-500.0,0.00021917,3]
[328795522,1717793446875,-500.0,0.00021917,3]
[328795523,1717793446886,-156.29541656,0.00021917,3]
[328795524,1717793446896,-500.0,0.00021917,3]
[328795525,1717793446906,-500.0,0.00021917,3]
[328795526,1717793446916,-500.0,0.00021917,3]
[328795527,1717793446925,-500.0,0.00021917,3]
[328795528,1717793446935,-500.0,0.00021917,3]
[328795529,1717793446945,-393.98501894,0.00021917,3]
[328795530,1717793446954,-665.07,0.00021917,3]
[328795531,1717793446964,-500.0,0.00021917,3]
[328795532,1717793446974,-500.0,0.00021917,3]
[328795533,1717793446984,-500.0,0.00021917,3]
[328795534,1717793446994,-497.7,0.00021917,3]
[328795535,1717793447005,-500.0,0.00021917,3]
[328795536,1717793447015,-592.63458382,0.00021917,3]
[328795537,1717793447024,-500.0,0.00021917,3]
[328795538,1717793447034,-500.0,0.00021917,3]
[328795539,1717793447044,-500.0,0.00021917,3]
[328795540,1717793447054,-500.0,0.00021917,3]
[328795541,1717793447064,-500.0,0.00021917,3]
[328795542,1717793447074,-500.0,0.00021917,3]
[328795543,1717793447084,-500.0,0.00021917,3]
[328795544,1717793447094,-500.0,0.00021917,3]
[328795545,1717793447105,-500.0,0.00021917,3]
[328795546,1717793447114,-1063.23,0.00021917,3]
[328795547,1717793447124,-723.22,0.00021917,3]
[328795548,1717793447134,-507.69431826,0.00021917,3]
[328795549,1717793447144,-500.0,0.00021917,3]
[328795550,1717793447153,-500.0,0.00021917,3]
[328795551,1717793447163,-500.0,0.00021917,3]
[328795552,1717793447176,-1687.48,0.00021917,3]
[328795553,1717793447186,-526.74,0.00021917,3]
[328795554,1717793447196,-1069.29,0.00021917,3]
[328795555,1717793447207,-800.59,0.00021917,3]
[328795556,1717793447216,-500.0,0.00021917,3]
[328795557,1717793447226,-500.0,0.00021917,3]
[328795558,1717793447236,-500.0,0.00021917,3]
[328795559,1717793447245,-500.0,0.00021917,3]
[328795560,1717793447259,-500.0,0.00021917,3]
[328795561,1717793447269,-624.44,0.00021917,3]
[328795562,1717793447279,-500.0,0.00021917,3]
[328795563,1717793447288,-500.0,0.00021917,3]
[328795564,1717793447297,-500.0,0.00021917,3]
[328795565,1717793447307,-500.0,0.00021917,3]
[328795566,1717793447316,-1780.04,0.00021917,3]
[328795567,1717793447326,-500.0,0.00021917,3]
[328795568,1717793447335,-832.04,0.00021917,3]
[328795569,1717793447345,-500.0,0.00021917,3]
[328795570,1717793447356,-500.0,0.00021917,3]
[328795571,1717793447366,-500.0,0.00021917,3]
[328795572,1717793447376,-500.0,0.00021917,3]
[328795573,1717793447388,-793.05,0.00021917,3]
[328795574,1717793447399,-500.0,0.00021917,3]
[328795575,1717793447410,-933.06,0.00021917,3]
[328795576,1717793447420,-500.0,0.00021917,3]
[328795577,1717793447430,-541.37,0.00021917,3]
[328795578,1717793447440,-227.75713147,0.00021917,3]
[328795579,1717793447454,-276.55286853,0.00021917,3]
[328795580,1717793447464,-500.0,0.00021917,3]
[328795581,1717793447474,-918.64713147,0.00021917,4]
[328795582,1717793447500,-573.32159612,0.00021917,4]
[328795583,1717793479947,-2802.0,0.00021893,2]
[328795586,1717793539899,-468.11829361,0.00021892,2]
[328795587,1717793539967,-463.76341278,0.00021892,2]
[328795588,1717793539978,-468.11829361,0.00021893,2]
[328795630,1717794349117,-197.42724254,0.00019817,2]
[328795631,1717794349140,-6266.8368949,0.00020485,2]
[328795632,1717794349160,-2557.9422314,0.00020795,2]
[328795633,1717794349194,-7369.57739568,0.00021,2]
[328795634,1717794349217,-150.0,0.000215,2]
[328795635,1717794349240,-584.131166,0.00021726,2]
[328795636,1717794349263,-898.71716983,0.000218,2]
[328795637,1717794349289,-150.0,0.00021805,2]
[328795638,1717794349310,-4236.94913646,0.00021842,2]
[328795639,1717794349335,-1810.71569059,0.0002189,4]
[328795641,1717794427100,-209.21385269,0.00021889,2]
[328795648,1717794562173,-150.0,0.00019742,2]
[328795701,1717794632918,-786.37752361,0.000218,2]
[328795703,1717794632927,-515.62247639,0.00021889,2]
[328795710,1717794632990,-1798.0,0.00021889,2]
[328795999,1717794638933,-2294.55413663,0.00021889,2]
[328796000,1717794638945,-449.44550916,0.00021889,2]
[328796055,1717794644133,-2102.74142081,0.00021889,2]
[328796056,1717794644142,-8181.85366646,0.0002189,4]
[328796077,1717794647045,-719.79,0.0002189,4]
[328796082,1717794726765,262.73110143,0.00015,2]
[328796083,1717794726787,200.0,0.00015,2]
[328796084,1717794726812,198.0,0.00015,2]
[328796085,1717794726833,200.26307181,0.00015,2]
[328796086,1717794726856,234.43671226,0.00015,2]
[328796087,1717794726879,4.84107673,0.00015,2]
[328796088,1717794746228,200.33886083,9.999e-05,2]
[328796089,1717795542183,-1740.64295088,0.00018847,2]
[328796094,1717795643176,-247.55892327,0.00018846,2]
[328796103,1717795745164,-2823.25066463,0.00018846,2]
[328796104,1717795745184,-4880.92585155,0.00018846,7]
[328796105,1717795745204,-23149.35704912,0.00018847,2]
[328796106,1717795745224,-679.58569086,0.000189,2]
[328796107,1717795745245,-234.399943,0.00019041,2]
[328796108,1717795745265,-1729.9735818,0.00019597,2]
[328796112,1717795764301,174.07857512,0.000188,2]
[328796113,1717795764324,218.98,0.000188,2]
[328796114,1717795764346,196.0,0.000188,2]
[328796115,1717795764368,180.25,0.000188,2]
[328796117,1717795773167,-229.0192823,0.000188,2]
[328796118,1717795774191,-998.32785742,0.00019957,2]
[328796157,1717795833260,-157.08712556,0.00019999,2]
[328796158,1717795833271,-1651.27112644,0.00019999,2]
[328796251,1717795842957,-1253.08271049,0.00019999,2]
[328796253,1717795842967,-746.91728951,0.0002,7]
[328796255,1717795842979,-1693.54563627,0.0002,7]
[328796257,1717795842990,-931.88170639,0.0002,2]
[328796259,1717795843003,-60000.0,0.0002,2]
[328796261,1717795843013,-151.0,0.00020525,3]
[328796263,1717795843022,-160.25313399,0.0002092,2]
[328796265,1717795843032,-802.17,0.0002099,3]
[328796267,1717795843042,-3226.37932291,0.00021,2]
[328796269,1717795843054,-3025.73,0.00021,2]
[328796392,1717795844285,-1117.46807277,0.00021,2]
[328796394,1717795844295,-151.0,0.00021022,5]
[328796396,1717795844304,-998.32785742,0.00021114,2]
[328796398,1717795844313,-306.0,0.00021178,2]
[328796400,1717795844323,-153.0,0.00021178,2]
[328796402,1717795844333,-205.1978842,0.00021178,2]
[328796404,1717795844342,-410.2665185,0.0002126,2]
[328796406,1717795844352,-205.1978842,0.0002126,2]
[328796408,1717795844362,-205.1978842,0.0002126,2]
[328796410,1717795844374,-205.1978842,0.0002126,2]
[328796412,1717795844384,-205.1978842,0.0002126,2]
[328796414,1717795844393,-718.92476032,0.00021388,2]
[328796416,1717795844403,-153.0,0.00021452,2]
[328796418,1717795844414,-153.0,0.00021452,2]
[328796420,1717795844425,-153.0,0.00021452,2]
[328796423,1717795844436,-153.0,0.00021452,2]
[328796424,1717795844447,-150.0,0.000215,2]
[328796427,1717795844457,-151.0,0.00021519,5]
[328796430,1717795844467,-790.4310622,0.00021523,2]
[328796433,1717795844476,-586.31637824,0.00021889,2]
[328796435,1717795844486,-500.0,0.00021889,2]
[328796437,1717795844495,-403.96244778,0.00021889,2]
[328796439,1717795844505,-164.59800187,0.00021889,2]
[328796441,1717795844515,-500.0,0.00021889,2]
[328796443,1717795844525,-531.88501923,0.00021889,2]
[328796445,1717795844536,-500.0,0.00021889,2]
[328796447,1717795844546,-339.35272188,0.00021889,2]
[328796449,1717795844557,-354.25675468,0.00021889,2]
[328796451,1717795844566,-500.0,0.00021889,2]
[328796453,1717795844576,-1900.95562068,0.0002189,4]
[328796455,1717795844593,-5945.80022843,0.0002189,4]
[328796458,1717795844605,-5040.449459,0.0002189,4]
[328796726,1717795847322,-500.49382646,0.0002189,4]
[328797216,1717796116113,-752.98852542,0.00019789,2]
[328797217,1717796116142,-1279.01147458,0.00020896,2]
[328797229,1717796506909,-778.40352862,0.00029619,35]
[328797230,1717796506935,-1966.40075923,0.00029619,40]
[328797231,1717796506958,-678.92507515,0.00029619,35]
[328797232,1717796506984,-9513.0720228,0.00029619,120]
[328797233,1717796507010,-160.0,0.00029619,30]
[328797234,1717796507034,-585957.58185755,0.00029619,120]
[328797235,1717796507059,-653.0,0.00029619,120]
[328797236,1717796507082,-847.81878556,0.00029619,120]
[328797237,1717796507104,-679.10332943,0.00029619,120]
[328797238,1717796507127,-859.99598714,0.00029619,120]
[328797239,1717796507153,-2000.0,0.00029619,120]
[328797240,1717796507175,-221.02605722,0.00029619,120]
[328797241,1717796507201,-1016.70393547,0.00029619,120]
[328797242,1717796507228,-194.12645353,0.00029619,120]
[328797243,1717796507252,-2698.12473008,0.00029619,90]